fUST/lending_fUST_20250107
["ID","MTS","AMOUNT","RATE_DAILY","PERIOD"]
[347950287,1736238030237,-4042.03855291,0.00018,2]
[347950288,1736238030246,-4042.03855291,0.00018,2]
[347950289,1736238030255,-4042.03855291,0.00018107,2]
[347950290,1736238030264,-730.345,0.0001814,2]
[347950291,1736238030273,-154.11890068,0.0001827,2]
[347950292,1736238030283,-4042.03855291,0.00018348,2]
[347950293,1736238030292,-467.95297728,0.00018475,2]
[347950294,1736238030302,-500.0,0.00018519,2]
[347950295,1736238030311,-167.0,0.00018552,2]
[347950296,1736238030320,-167.0,0.00018552,2]
[347950297,1736238030329,-167.0,0.00018552,2]
[347950298,1736238030338,-201.81,0.00018552,2]
[347950299,1736238030348,-214.0,0.00018552,2]
[347950300,1736238030357,-214.0,0.00018552,2]
[347950301,1736238030367,-214.0,0.00018552,2]
[347950302,1736238030376,-214.0,0.00018552,2]
[347950303,1736238030386,-214.0,0.00018552,2]
[347950304,1736238030395,-214.0,0.00018552,2]
[347950305,1736238030404,-214.0,0.00018552,2]
[347950306,1736238030413,-214.0,0.00018552,2]
[347950307,1736238030423,-214.0,0.00018552,2]
[347950308,1736238030433,-214.0,0.00018552,2]
[347950309,1736238030442,-214.0,0.00018552,2]
[347950310,1736238030451,-214.0,0.00018552,2]
[347950311,1736238030460,-214.0,0.00018552,2]
[347950312,1736238030469,-214.0,0.00018552,2]
[347950313,1736238030478,-214.0,0.00018552,2]
[347950314,1736238030488,-214.0,0.00018552,2]
[347950315,1736238030497,-214.0,0.00018552,2]
[347950316,1736238030506,-214.0,0.00018552,2]
[347950317,1736238030515,-214.0,0.00018552,2]
[347950318,1736238030525,-214.0,0.00018552,2]
[347950319,1736238030534,-214.0,0.00018552,2]
[347950320,1736238030544,-214.0,0.00018552,2]
[347950321,1736238030553,-214.0,0.00018552,2]
[347950322,1736238030562,-214.0,0.00018552,2]
[347950323,1736238030571,-214.0,0.00018552,2]
[347950324,1736238030581,-214.0,0.00018552,2]
[347950325,1736238030591,-214.0,0.00018552,2]
[347950326,1736238030600,-214.0,0.00018552,2]
[347950327,1736238030612,-214.0,0.00018552,2]
[347950328,1736238030623,-241.99,0.00018552,2]
[347950329,1736238030633,-9578.84972826,0.00018571,2]
[347950330,1736238030642,-4042.03855291,0.0001859,2]
[347950331,1736238030653,-154.13,0.000186,2]
[347950332,1736238030662,-420.0,0.0001862,2]
[347950333,1736238030671,-1500.0,0.00018622,2]
[347950334,1736238030680,-154.11890068,0.00018709,2]
[347950335,1736238030692,-81151.2724925,0.000188,2]
[347952075,1736238494438,6779.88466827,0.000125,2]
[347952081,1736238523591,400.0,0.00013973,2]
[347952113,1736238633452,-634.87464162,0.00017606,2]
[347952114,1736238633463,-300.0,0.00017784,2]
[347952115,1736238633473,-654.5917733,0.00017785,2]
[347952116,1736238633483,-3546.51251891,0.00017785,2]
[347952117,1736238633565,-387.00001,0.00017785,2]
[347952164,1736238638682,-1720.23456025,0.00017785,2]
[347952288,1736238640829,-19246.25291084,0.00017785,2]
[347952291,1736238640839,-195.0,0.000186,2]
[347952292,1736238640849,-194.61557785,0.000186,3]
[347952294,1736238640858,-298.8191645,0.000187,2]
[347952296,1736238640867,-1508.31789912,0.00018709,2]
[347952299,1736238640882,-16676.7635075,0.000188,2]
[347952301,1736238640891,-151.377614,0.000188,2]
[347952303,1736238640900,-151.0,0.000188,2]
[347952305,1736238640910,-151.0,0.000188,2]
[347952307,1736238640919,-636.640678,0.000188,2]
[347952309,1736238640929,-636.640678,0.000188,2]
[347952311,1736238640938,-151.0,0.000188,2]
[347952313,1736238640947,-151.0,0.000188,2]
[347952315,1736238640956,-179.40995345,0.000188,2]
[347952317,1736238640966,-555.09793754,0.00018808,2]
[347952319,1736238640975,-500.0,0.00018808,2]
[347952321,1736238640984,-500.0,0.00018808,2]
[347952323,1736238640994,-509.1386211,0.00018808,2]
[347952325,1736238641003,-500.0,0.00018808,2]
[347952327,1736238641012,-395.73534068,0.00018808,2]
[347952329,1736238641021,-1547.7163557,0.00018809,2]
[347952331,1736238641030,-16607.9985036,0.00018809,2]
[347952333,1736238641039,-219605.28292166,0.00018809,2]
[347952409,1736238643896,-0.10005322,0.00018809,2]
[347952412,1736238646873,-412.41206178,0.00018809,2]
[347952413,1736238646889,-1448.752241,0.00018809,2]
[347952414,1736238646936,-709.11478154,0.00018809,2]
[347952423,1736239222909,537.77362366,0.00015001,2]
[347952424,1736239226380,314.0,0.00015,60]
[347952425,1736239406673,964.09506315,0.00015001,2]
[347952426,1736239525472,400.0,0.00013973,2]
[347952429,1736239644084,-500.0,0.0001594,2]
[347952430,1736239644105,-92.89022755,0.00016778,2]
[347952465,1736239831930,-235.8469744,0.00016445,2]
[347952467,1736239831940,-300.0,0.00016611,2]
[347952469,1736239831950,-407.10977245,0.00016778,2]
[347952471,1736239831960,-300.0,0.00017407,2]
[347952473,1736239831971,-823.32205668,0.00017407,2]
[347952475,1736239831987,-1242.67794332,0.00017407,2]
[347952476,1736239831997,-4991.4288852,0.00017408,2]
[347952533,1736239837958,-19908.5711148,0.00017408,2]
[347952534,1736239837968,-500.0,0.00017662,2]
[347952535,1736239837978,-392.527101,0.00017752,2]
[347952536,1736239837987,-699.753,0.0001787,2]
[347952537,1736239837996,-4218.41180588,0.00018,2]
[347952538,1736239838005,-153.0,0.00018052,2]
[347952540,1736239838015,-4218.41180568,0.00018107,2]
[347952542,1736239838024,-998.80143827,0.00018313,2]
[347952543,1736239838033,-4218.41180568,0.00018314,2]
[347952544,1736239838043,-465.14764887,0.00018428,2]
[347952545,1736239838052,-153.0,0.00018452,2]
[347952547,1736239838061,-153.0,0.00018452,2]
[347952549,1736239838071,-4218.41180568,0.00018521,2]
[347952551,1736239838081,-2542.87089218,0.00018523,2]
[347952553,1736239838091,-500.0,0.00018545,2]
[347952555,1736239838100,-153.0,0.00018552,2]
[347952557,1736239838110,-153.0,0.00018552,2]
[347952559,1736239838120,-154.13,0.000186,2]
[347952561,1736239838130,-167.0,0.00018604,2]
[347952563,1736239838140,-163.01,0.00018604,2]
[347952564,1736239838149,-1624.0,0.00018604,2]
[347952565,1736239838158,-1679.01,0.00018604,2]
[347952566,1736239838170,-477.2146323,0.0001862,2]
[347952567,1736239838180,-153.0,0.00018652,2]
[347952568,1736239838191,-155.549415,0.00018652,2]
[347952569,1736239838200,-1424.11566942,0.00018709,2]
[347952570,1736239838210,-4218.41180568,0.00018728,2]
[347952571,1736239838219,-811.17329751,0.00018739,2]
[347952572,1736239838229,-299.19,0.00018796,2]
[347952573,1736239838238,-151.0,0.000188,2]
[347952574,1736239838249,-588.467,0.000188,2]
[347952575,1736239838258,-151.0,0.00018808,2]
[347952576,1736239838268,-500.0,0.00018808,2]
[347952577,1736239838278,-586.14129918,0.00018808,2]
[347952578,1736239838288,-1190.83079619,0.00018809,2]
[347952579,1736239838298,-13872.78316991,0.00018809,2]
[347952580,1736239838307,-1033818.32639679,0.00018809,2]
[347952581,1736239838319,-3603.51846791,0.00018809,2]
[347952584,1736239839544,6219.0,0.00015,30]
[347952612,1736239842852,-182189.01330652,0.00018809,2]
[347952615,1736239842864,-169648.5595,0.00018809,2]
[347952617,1736239842876,-3899.1,0.00018809,2]
[347952619,1736239842887,-8796.99890821,0.00018809,2]
[347952934,1736239860267,500.0,0.00025,120]
[347952942,1736240387933,400.0,0.00013973,2]
[347952944,1736240514399,-300.0,0.00016184,2]
[347952945,1736240514419,-426.53205896,0.0001638,2]
[347952946,1736240514439,-300.0,0.00016389,2]
[347952947,1736240514460,-5895.05794104,0.0001639,2]
[347952954,1736240852124,-300.0,0.00016389,2]
[347952955,1736240852145,-241.55129972,0.0001639,2]
[347953113,1736241038020,-250.0,0.00016237,2]
[347953115,1736241038030,-300.0,0.00016295,2]
[347953117,1736241038039,-24900.0,0.00016296,2]
[347953119,1736241038049,-420.3280526,0.00016389,2]
[347953121,1736241038059,-13791.68973264,0.0001639,2]
[347953123,1736241038068,-299.76863882,0.00016578,2]
[347953125,1736241038078,-259.13128244,0.00016678,2]
[347953128,1736241038089,-250.0,0.00016715,2]
[347953130,1736241038099,-998.80143827,0.00016908,2]
[347953132,1736241038109,-2661.5133462,0.00016909,2]
[347953133,1736241038118,-4312.1177018,0.00017012,2]
[347953135,1736241038128,-1636.041855,0.00017161,2]
[347953138,1736241038137,-533.24445,0.00017242,2]
[347953139,1736241038147,-299.76863877,0.00017516,2]
[347953142,1736241038156,-152.0,0.00017727,2]
[347953144,1736241038166,-190.02328871,0.00017741,2]
[347953146,1736241038176,-400.0000006,0.00017751,2]
[347953148,1736241038185,-420.0,0.00017811,2]
[347953149,1736241038195,-716.706,0.0001787,2]
[347953152,1736241038204,-4363.58375339,0.000179,2]
[347953153,1736241038213,-898.43911093,0.00017957,2]
[347953155,1736241038223,-4363.58375319,0.00018107,2]
[347953157,1736241038232,-522.93552329,0.00018234,2]
[347953159,1736241038241,-319.99999919,0.00018288,2]
[347953161,1736241038251,-153.7491537,0.00018301,2]
[347953163,1736241038260,-443.3216861,0.00018301,2]
[347953165,1736241038270,-153.7491537,0.00018301,2]
[347953167,1736241038280,-153.7491537,0.00018301,2]
[347953169,1736241038289,-153.1041217,0.00018301,2]
[347953171,1736241038299,-4363.58375319,0.00018314,2]
[347953173,1736241038309,-299.76863877,0.00018455,2]
[347953175,1736241038318,-2542.87089218,0.0001848,2]
[347953177,1736241038327,-500.0,0.0001852,2]
[347953179,1736241038337,-500.0,0.0001852,2]
[347953181,1736241038346,-500.0,0.0001852,2]
[347953183,1736241038355,-500.0,0.0001852,2]
[347953185,1736241038364,-500.0,0.0001852,2]
[347953187,1736241038373,-302.8614059,0.0001852,2]
[347953189,1736241038382,-500.0,0.0001852,2]
[347953191,1736241038391,-500.0,0.0001852,2]
[347953193,1736241038401,-500.0,0.0001852,2]
[347953195,1736241038410,-500.0,0.0001852,2]
[347953197,1736241038419,-500.0,0.0001852,2]
[347953199,1736241038429,-500.0,0.0001852,2]
[347953201,1736241038438,-500.0,0.0001852,2]
[347953203,1736241038448,-500.0,0.0001852,2]
[347953205,1736241038457,-500.0,0.0001852,2]
[347953207,1736241038467,-500.0,0.0001852,2]
[347953209,1736241038476,-500.0,0.0001852,2]
[347953211,1736241038488,-500.0,0.0001852,2]
[347953213,1736241038497,-529.92745048,0.0001852,2]
[347953215,1736241038506,-500.0,0.0001852,2]
[347953217,1736241038515,-500.0,0.0001852,2]
[347953219,1736241038525,-500.0,0.0001852,2]
[347953221,1736241038534,-384.81721625,0.0001852,2]
[347953223,1736241038543,-500.0,0.0001852,2]
[347953225,1736241038553,-500.0,0.0001852,2]
[347953227,1736241038562,-500.0,0.0001852,2]
[347953229,1736241038571,-500.0,0.0001852,2]
[347953231,1736241038581,-500.0,0.0001852,2]
[347953233,1736241038590,-500.0,0.0001852,2]
[347953235,1736241038599,-500.0,0.0001852,2]
[347953237,1736241038609,-348.81592942,0.0001852,2]
[347953239,1736241038618,-500.0,0.0001852,2]
[347953242,1736241038629,-500.0,0.0001852,2]
[347953244,1736241038638,-335.0,0.0001852,2]
[347953245,1736241038647,-500.0,0.0001852,2]
[347953248,1736241038657,-500.0,0.0001852,2]
[347953250,1736241038666,-500.0,0.0001852,2]
[347953252,1736241038675,-500.0,0.0001852,2]
[347953254,1736241038685,-500.0,0.0001852,2]
[347953256,1736241038695,-500.0,0.0001852,2]
[347953258,1736241038704,-500.0,0.0001852,2]
[347953260,1736241038713,-500.0,0.0001852,2]
[347953262,1736241038723,-500.0,0.0001852,2]
[347953264,1736241038732,-500.0,0.0001852,2]
[347953266,1736241038742,-500.0,0.0001852,2]
[347953268,1736241038751,-500.0,0.0001852,2]
[347953270,1736241038760,-500.0,0.0001852,2]
[347953272,1736241038770,-500.0,0.0001852,2]
[347953273,1736241038779,-500.0,0.0001852,2]
[347953275,1736241038788,-500.0,0.0001852,2]
[347953278,1736241038798,-500.0,0.0001852,2]
[347953280,1736241038808,-265.97541221,0.0001852,2]
[347953282,1736241038817,-500.0,0.0001852,2]
[347953284,1736241038827,-500.0,0.0001852,2]
[347953285,1736241038836,-500.0,0.0001852,2]
[347953288,1736241038846,-500.0,0.0001852,2]
[347953289,1736241038855,-500.0,0.0001852,2]
[347953291,1736241038865,-500.0,0.0001852,2]
[347953293,1736241038874,-315.65305334,0.0001852,2]
[347953295,1736241038884,-500.0,0.0001852,2]
[347953297,1736241038893,-500.0,0.0001852,2]
[347953299,1736241038902,-500.0,0.0001852,2]
[347953301,1736241038912,-500.0,0.0001852,2]
[347953303,1736241038922,-500.0,0.0001852,2]
[347953305,1736241038932,-500.0,0.0001852,2]
[347953307,1736241038941,-500.0,0.0001852,2]
[347953309,1736241038951,-500.0,0.0001852,2]
[347953311,1736241038961,-500.0,0.0001852,2]
[347953313,1736241038971,-500.0,0.0001852,2]
[347953315,1736241038981,-500.0,0.0001852,2]
[347953317,1736241038991,-500.0,0.0001852,2]
[347953319,1736241039000,-500.0,0.0001852,2]
[347953321,1736241039016,-500.0,0.0001852,2]
[347953323,1736241039025,-500.0,0.0001852,2]
[347953325,1736241039035,-500.0,0.0001852,2]
[347953327,1736241039045,-500.0,0.0001852,2]
[347953329,1736241039055,-500.0,0.0001852,2]
[347953331,1736241039065,-500.0,0.0001852,2]
[347953333,1736241039075,-500.0,0.0001852,2]
[347953335,1736241039084,-500.0,0.0001852,2]
[347953337,1736241039095,-4363.58375319,0.00018521,2]
[347953340,1736241039104,-5507.92460229,0.00018543,2]
[347953342,1736241039114,-189.81,0.00018576,2]
[347953343,1736241039123,-10034.51135107,0.000186,2]
[347953346,1736241039133,-477.2146323,0.0001862,2]
[347953347,1736241039142,-770.59450342,0.00018709,2]
[347953350,1736241039151,-1424.11566942,0.00018709,2]
[347953352,1736241039160,-394.0,0.00018715,2]
[347953353,1736241039170,-171.0,0.00018715,2]
[347953356,1736241039179,-4363.58375319,0.00018728,2]
[347953357,1736241039189,-621.21,0.0001873,2]
[347953359,1736241039198,-597.31885819,0.00018758,2]
[347953361,1736241039207,-261.0,0.000188,2]
[347953363,1736241039217,-151.0,0.000188,2]
[347953366,1736241039226,-2000.0,0.000188,3]
[347953368,1736241039236,-151.0,0.00018808,2]
[347953370,1736241039245,-1190.83079619,0.00018809,2]
[347953371,1736241039254,-13872.78316991,0.00018809,2]
[347953373,1736241039264,-948782.56722437,0.00018809,2]
[347953376,1736241039277,-500.0,0.00018809,2]
[347953379,1736241039294,-18037.92158607,0.00018809,2]
[347953381,1736241039305,-27867.04842436,0.00018809,2]
[347953610,1736241043080,-38847.56433498,0.00018809,2]
[347953617,1736241043137,-778798.76742287,0.00018809,2]
[347953863,1736241046030,-151.0,0.00018808,2]
[347953865,1736241046039,-18558.05411395,0.00018809,2]
[347953866,1736241046109,-948.100025,0.00018809,2]
[347953867,1736241046156,-0.03948099,0.00018809,2]
[347953868,1736241174450,641.19354148,0.0002,120]
[347953869,1736241284793,400.0,0.00013973,2]
[347953874,1736242145113,-294.0,0.00016111,2]
[347953875,1736242150281,400.0,0.00013973,2]
[347953902,1736242232515,-301.51713265,0.00015949,2]
[347953903,1736242232525,-69.102995,0.00016111,2]
[347953904,1736242232535,-160.0,0.0001639,3]
[347953905,1736242232545,-458.48432801,0.00016696,2]
[347953938,1736242238028,-41.51567199,0.00016696,2]
[347953940,1736242238038,-160.0,0.00016766,4]
[347953942,1736242238047,-890.76432801,0.00017063,2]
[347953947,1736242238086,-974.36799175,0.00017063,2]
[347953949,1736242238095,-1407.89856865,0.0001713,2]
[347953951,1736242238105,-160.0,0.00017143,5]
[347953953,1736242238114,-300.0,0.00017229,2]
[347953955,1736242238123,-8545.0,0.00017229,2]
[347953957,1736242238132,-9043.76817817,0.0001723,2]
[347953960,1736242238145,-15856.23182183,0.0001723,2]
[347953962,1736242238154,-1407.89856865,0.00017264,2]
[347953964,1736242238163,-1407.89856865,0.00017398,2]
[347953967,1736242238173,-152.0,0.00017498,2]
[347953969,1736242238182,-160.0,0.00017519,6]
[347953970,1736242238191,-161.50831226,0.00017519,5]
[347953972,1736242238200,-500.0,0.00017575,2]
[347953974,1736242238209,-704.39,0.0001787,2]
[347953976,1736242238219,-3927.2253779,0.000179,2]
[347953977,1736242238228,-6921.56064843,0.00018,2]
[347953978,1736242238237,-3927.22537787,0.00018107,2]
[347953979,1736242238246,-3927.22537787,0.00018314,2]
[347953980,1736242238255,-308.23780139,0.0001835,2]
[347953982,1736242238264,-308.23780137,0.00018351,2]
[347953983,1736242238273,-308.23780137,0.00018352,2]
[347953984,1736242238282,-308.23780137,0.00018353,2]
[347953986,1736242238291,-1424.11566942,0.00018354,2]
[347953988,1736242238300,-308.23780137,0.00018354,2]
[347953989,1736242238310,-3313.00468586,0.000184,2]
[347953991,1736242238319,-500.0,0.00018446,2]
[347953992,1736242238328,-500.0,0.00018446,2]
[347953994,1736242238338,-500.0,0.00018446,2]
[347953995,1736242238347,-500.0,0.00018446,2]
[347953997,1736242238356,-500.0,0.00018446,2]
[347953999,1736242238365,-500.0,0.00018446,2]
[347954000,1736242238374,-500.0,0.00018446,2]
[347954001,1736242238383,-500.0,0.00018446,2]
[347954002,1736242238391,-500.0,0.00018446,2]
[347954003,1736242238401,-500.0,0.00018446,2]
[347954004,1736242238410,-500.0,0.00018446,2]
[347954005,1736242238420,-500.0,0.00018446,2]
[347954006,1736242238429,-500.0,0.00018446,2]
[347954008,1736242238439,-500.0,0.00018446,2]
[347954009,1736242238448,-500.0,0.00018446,2]
[347954012,1736242238459,-500.0,0.00018446,2]
[347954013,1736242238468,-384.81721625,0.00018446,2]
[347954015,1736242238478,-250.00000001,0.00018446,2]
[347954017,1736242238487,-500.0,0.00018446,2]
[347954018,1736242238497,-500.0,0.00018446,2]
[347954020,1736242238508,-529.92745048,0.00018446,2]
[347954022,1736242238518,-500.0,0.00018446,2]
[347954023,1736242238528,-500.0,0.00018446,2]
[347954024,1736242238538,-500.0,0.00018446,2]
[347954025,1736242238547,-500.0,0.00018446,2]
[347954026,1736242238556,-500.0,0.00018446,2]
[347954027,1736242238565,-500.0,0.00018446,2]
[347954028,1736242238574,-200.0,0.00018446,2]
[347954029,1736242238584,-500.0,0.00018446,2]
[347954030,1736242238593,-500.0,0.00018446,2]
[347954031,1736242238602,-500.0,0.00018446,2]
[347954032,1736242238611,-500.0,0.00018446,2]
[347954033,1736242238620,-500.0,0.00018446,2]
[347954034,1736242238630,-500.0,0.00018446,2]
[347954035,1736242238639,-500.0,0.00018446,2]
[347954036,1736242238648,-500.0,0.00018446,2]
[347954037,1736242238657,-500.0,0.00018446,2]
[347954038,1736242238666,-500.0,0.00018446,2]
[347954039,1736242238675,-500.0,0.00018446,2]
[347954040,1736242238684,-500.0,0.00018446,2]
[347954041,1736242238694,-500.0,0.00018446,2]
[347954042,1736242238703,-500.0,0.00018446,2]
[347954043,1736242238712,-500.0,0.00018446,2]
[347954044,1736242238721,-500.0,0.00018446,2]
[347954045,1736242238730,-500.0,0.00018446,2]
[347954046,1736242238739,-500.0,0.00018446,2]
[347954047,1736242238750,-278.39577675,0.00018449,2]
[347954048,1736242238759,-501.62346584,0.00018449,2]
[347954049,1736242238770,-1190.83079619,0.0001845,2]
[347954050,1736242238780,-32378.67023614,0.0001845,2]
[347954051,1736242238789,-270241.87840749,0.0001845,5]
[347954052,1736242238802,-1100.13685492,0.0001845,5]
[347954053,1736242238813,-1032807.09878114,0.0001845,5]
[347954054,1736242238825,-3303.09555592,0.0001845,5]
[347954065,1736242240210,-13901.40788358,0.0001845,5]
[347954066,1736242240269,-598.0205773,0.0001845,5]
[347954067,1736242240284,-18707.13383803,0.0001845,5]
[347954125,1736242243422,-38362.65089941,0.0001845,5]
[347954387,1736242246148,-500.0,0.00018446,2]
[347954389,1736242246159,-500.0,0.00018446,2]
[347954391,1736242246168,-500.0,0.00018446,2]
[347954393,1736242246177,-500.0,0.00018446,2]
[347954395,1736242246187,-500.0,0.00018446,2]
[347954397,1736242246196,-500.0,0.00018446,2]
[347954399,1736242246205,-500.0,0.00018446,2]
[347954401,1736242246215,-215.65305334,0.00018446,2]
[347954403,1736242246225,-25226.22562365,0.0001845,5]
[347954406,1736242246236,-19993.86282777,0.0001845,5]
[347954408,1736242246248,-20879.71254799,0.0001845,5]
[347954783,1736243099049,400.0,0.00013973,2]
[347954785,1736243231078,-341.19628031,0.00017093,2]
[347954786,1736243231099,-251.96005445,0.00017266,2]
[347954790,1736243429387,7034.21,0.00025,120]
[347954800,1736243432763,-181.551497,0.00017263,2]
[347954801,1736243432773,-236.66746179,0.00017365,2]
[347954836,1736243438314,-63.33253821,0.00017365,2]
[347954837,1736243438324,-412.33746179,0.00017366,2]
[347954838,1736243438335,-6351.28166407,0.00017366,2]
[347954839,1736243438419,-18136.38087414,0.00017366,2]
[347954840,1736243438429,-304.74790172,0.00017519,5]
[347954841,1736243438438,-692.049,0.0001787,2]
[347954842,1736243438448,-2542.87089218,0.00018109,2]
[347954843,1736243438458,-500.2862811,0.00018158,2]
[347954845,1736243438467,-295.89967687,0.00018347,2]
[347954846,1736243438476,-212.97938398,0.00018348,2]
[347954847,1736243438486,-151.0,0.000184,2]
[347954848,1736243438495,-151.0,0.000184,2]
[347954849,1736243438505,-153.86857958,0.00018446,2]
[347954850,1736243438515,-500.0,0.00018446,2]
[347954851,1736243438524,-500.0,0.00018446,2]
[347954852,1736243438534,-500.0,0.00018446,2]
[347954853,1736243438543,-225.5474945,0.00018446,2]
[347954854,1736243438553,-302.8614059,0.00018446,2]
[347954855,1736243438562,-500.0,0.00018446,2]
[347954856,1736243438572,-500.0,0.00018446,2]
[347954857,1736243438582,-500.0,0.00018446,2]
[347954858,1736243438591,-500.0,0.00018446,2]
[347954859,1736243438601,-500.0,0.00018446,2]
[347954860,1736243438610,-500.0,0.00018446,2]
[347954861,1736243438623,-500.0,0.00018446,2]
[347954862,1736243438633,-500.0,0.00018446,2]
[347954863,1736243438643,-500.0,0.00018446,2]
[347954864,1736243438653,-500.0,0.00018446,2]
[347954865,1736243438664,-357.60498013,0.00018446,2]
[347954866,1736243438674,-500.0,0.00018446,2]
[347954867,1736243438685,-500.0,0.00018446,2]
[347954868,1736243438695,-500.0,0.00018446,2]
[347954869,1736243438704,-500.0,0.00018446,2]
[347954870,1736243438714,-500.0,0.00018446,2]
[347954871,1736243438724,-500.0,0.00018446,2]
[347954872,1736243438733,-500.0,0.00018446,2]
[347954873,1736243438743,-500.0,0.00018446,2]
[347954874,1736243438752,-500.0,0.00018446,2]
[347954875,1736243438761,-500.0,0.00018446,2]
[347954876,1736243438771,-500.0,0.00018446,2]
[347954877,1736243438780,-500.0,0.00018446,2]
[347954878,1736243438790,-500.0,0.00018446,2]
[347954879,1736243438800,-500.0,0.00018446,2]
[347954880,1736243438810,-163.45474113,0.00018446,2]
[347954881,1736243438823,-500.0,0.00018446,2]
[347954882,1736243438834,-500.0,0.00018446,2]
[347954883,1736243438845,-500.0,0.00018446,2]
[347954884,1736243438854,-500.0,0.00018446,2]
[347954885,1736243438867,-500.0,0.00018446,2]
[347954886,1736243438877,-500.0,0.00018446,2]
[347954887,1736243438887,-500.0,0.00018446,2]
[347954888,1736243438900,-500.0,0.00018446,2]
[347954889,1736243438910,-500.0,0.00018446,2]
[347954890,1736243438919,-500.0,0.00018446,2]
[347954891,1736243438928,-500.0,0.00018446,2]
[347954892,1736243438938,-615.4380073,0.00018446,2]
[347954893,1736243438947,-500.0,0.00018446,2]
[347954894,1736243438957,-500.0,0.00018446,2]
[347954895,1736243438967,-500.0,0.00018446,2]
[347954896,1736243438976,-500.0,0.00018446,2]
[347954897,1736243438987,-500.0,0.00018446,2]
[347954898,1736243438996,-500.0,0.00018446,2]
[347954899,1736243439005,-500.0,0.00018446,2]
[347954900,1736243439015,-500.0,0.00018446,2]
[347954901,1736243439024,-500.0,0.00018446,2]
[347954902,1736243439034,-500.0,0.00018446,2]
[347954903,1736243439044,-500.0,0.00018446,2]
[347954904,1736243439054,-500.0,0.00018446,2]
[347954905,1736243439064,-500.0,0.00018446,2]
[347954906,1736243439073,-375.68898791,0.00018446,2]
[347954907,1736243439083,-500.0,0.00018446,2]
[347954908,1736243439093,-500.0,0.00018446,2]
[347954909,1736243439102,-500.0,0.00018446,2]
[347954910,1736243439112,-500.0,0.00018446,2]
[347954911,1736243439123,-500.0,0.00018446,2]
[347954912,1736243439132,-500.0,0.00018446,2]
[347954913,1736243439142,-500.0,0.00018446,2]
[347954914,1736243439151,-500.0,0.00018446,2]
[347954915,1736243439160,-500.0,0.00018446,2]
[347954916,1736243439170,-500.0,0.00018446,2]
[347954917,1736243439179,-500.0,0.00018446,2]
[347954918,1736243439189,-500.0,0.00018446,2]
[347954919,1736243439198,-259.14620745,0.00018446,2]
[347954920,1736243439207,-500.0,0.00018446,2]
[347954921,1736243439216,-500.0,0.00018446,2]
[347954922,1736243439226,-500.0,0.00018446,2]
[347954923,1736243439236,-500.0,0.00018446,2]
[347954924,1736243439247,-500.0,0.00018446,2]
[347954925,1736243439257,-500.0,0.00018446,2]
[347954926,1736243439265,-500.0,0.00018446,2]
[347954927,1736243439275,-500.0,0.00018446,2]
[347954928,1736243439284,-500.0,0.00018446,2]
[347954929,1736243439293,-500.0,0.00018446,2]
[347954930,1736243439302,-500.0,0.00018446,2]
[347954931,1736243439311,-500.0,0.00018446,2]
[347954932,1736243439320,-500.0,0.00018446,2]
[347954933,1736243439329,-500.0,0.00018446,2]
[347954934,1736243439338,-500.0,0.00018446,2]
[347954935,1736243439347,-500.0,0.00018446,2]
[347954936,1736243439357,-500.0,0.00018446,2]
[347954937,1736243439367,-500.0,0.00018446,2]